bitfinex-derivatives/quotes_SOLF0:USTF0_20241009
["timestamp","ask_amount","ask_price","bid_price","bid_amount"]
[1728511094386,3.5735,140.01,139.98,3.5741]
[1728511094581,3.5735,140.01,139.99,5.33328777]
[1728511094787,3.5735,140.01,140.0,5.33328777]
[1728511101095,3.5735,140.01,139.99,3.5739]
[1728511101294,3.5735,140.01,140.0,5.33411754]
[1728511102197,14.5534,140.02,140.0,5.33411754]
[1728511102390,14.5534,140.02,140.01,5.33411754]
[1728511104594,14.5534,140.02,139.99,3.5739]
[1728511104793,14.5534,140.02,140.0,5.33327805]
[1728511104989,14.5534,140.02,140.01,5.33327805]
[1728511108794,3.5734,140.02,140.01,5.33327805]
[1728511111305,3.5734,140.02,139.99,3.5739]
[1728511111703,3.5734,140.02,140.0,5.33500342]
[1728511112009,3.5734,140.02,140.01,5.33500342]
[1728511115006,3.5734,140.02,140.01,5.34161562]
[1728511117113,14.5534,140.02,140.01,5.34161562]
[1728511118412,3.574,139.99,139.97,3.5744]
[1728511118718,3.574,139.99,139.98,5.33922331]
[1728511123313,3.574,139.99,139.98,5.34205738]
[1728511123612,14.554,139.99,139.98,5.34205738]
[1728511131828,14.554,139.99,139.96,6.4184]
[1728511132330,14.554,139.99,139.97,5.34430518]
[1728511132522,5.7,140.02,139.98,8.91840518]
[1728511132523,3.5735,140.01,139.98,8.91840518]
[1728511132732,14.5535,140.01,139.99,5.34430518]
[1728511132927,14.5535,140.01,140.0,5.34430518]
[1728511135835,14.5534,140.01,140.0,5.34331023]
[1728511139731,3.5734,140.01,140.0,5.34331023]
[1728511139931,14.5534,140.01,140.0,5.34331023]
[1728511140231,3.5734,140.01,140.0,5.34331023]
[1728511140631,14.5534,140.01,140.0,5.34331023]
[1728511141431,3.5742,139.99,139.96,6.4184]
[1728511141638,14.5542,139.99,139.96,6.4184]
[1728511141831,14.5542,139.99,139.97,5.3446845]
[1728511142029,14.5542,139.99,139.98,5.3446845]
[1728511144832,14.5542,139.99,139.96,6.4184]
[1728511145031,14.5542,139.99,139.97,5.34349569]
[1728511145434,14.5542,139.99,139.98,5.34349569]
[1728511148031,3.5742,139.99,139.96,6.4184]
[1728511148233,3.5742,139.99,139.97,8.91795023]
[1728511148428,3.5742,139.99,139.97,3.5745]
[1728511148636,3.5742,139.99,139.98,5.34353603]
[1728511151736,3.5738,140.0,139.98,5.34353603]
[1728511152034,10.98,140.0,139.99,5.34353603]
[1728511152539,14.5537,140.0,139.99,5.34353603]
[1728511152737,10.98,140.0,139.95,1.4461]
[1728511153044,3.5749,139.96,139.93,3.5754]
[1728511153939,10.98,139.94,139.91,7.82342]
[1728511154236,10.98,139.92,139.91,1.44372]
[1728511154441,14.5557,139.92,139.91,0.12502]
[1728511157447,10.98,139.92,139.86,1.3187]
[1728511157743,10.98,139.87,139.83,192.19167034]
[1728511158133,10.98,139.87,139.83,186.51167034]
[1728511158335,10.98,139.87,139.85,3.70252]
[1728511160545,10.98,139.87,139.85,0.12502]
[1728511165252,14.557,139.87,139.85,0.12502]
[1728511165651,10.98,139.87,139.85,0.12502]
[1728511165846,3.5773,139.86,139.85,0.12502]
[1728511166750,3.5771,139.87,139.85,0.12502]
[1728511167059,14.5571,139.87,139.85,0.12502]
[1728511167257,3.5773,139.86,139.85,0.12502]
[1728511167958,14.5571,139.87,139.85,0.12502]
[1728511168360,10.98,139.87,139.85,0.12502]
[1728511168860,3.5773,139.86,139.85,0.12502]
[1728511169158,10.98,139.87,139.85,0.12502]
[1728511169560,14.5572,139.87,139.85,0.12502]
[1728511171567,10.98,139.87,139.85,0.12502]
[1728511171758,3.5773,139.86,139.85,0.12502]
[1728511173963,3.577,139.87,139.85,0.12502]
[1728511174361,14.557,139.87,139.85,0.12502]
[1728511177470,3.577,139.87,139.85,0.12502]
[1728511177664,14.557,139.87,139.85,0.12502]
[1728511179672,3.5773,139.86,139.85,0.12502]
[1728511180573,10.98,139.87,139.85,0.12502]
[1728511180776,14.5572,139.87,139.85,0.12502]
[1728511183879,3.5772,139.87,139.85,0.12502]
[1728511189481,10.98,139.86,139.85,0.12502]
[1728511190089,10.98,139.86,139.85,3.70252]
[1728511193591,3.5772,139.87,139.85,3.70252]
[1728511197194,3.5772,139.87,139.85,0.12502]
[1728511198490,10.98,139.88,139.85,0.12502]
[1728511198697,14.5573,139.86,139.85,0.12502]
[1728511200691,3.5785,139.82,139.79,0.12502]
[1728511200890,10.98,139.82,139.79,0.12502]
[1728511201285,10.98,139.8,139.79,0.12502]
[1728511201995,14.5588,139.8,139.79,0.12502]
[1728511202688,3.5787,139.81,139.79,0.12502]
[1728511202893,10.98,139.8,139.79,0.12502]
[1728511203495,14.5588,139.8,139.79,0.12502]
[1728511205597,10.98,139.8,139.73,3.70552]
[1728511205895,10.98,139.76,139.73,3.70552]
[1728511206400,10.98,139.75,139.73,0.12502]
[1728511207399,14.5603,139.74,139.73,0.12502]
[1728511207897,3.5803,139.74,139.73,0.12502]
[1728511208398,3.5799,139.76,139.73,0.12502]
[1728511208596,10.98,139.77,139.73,0.12502]
[1728511208790,10.98,139.77,139.74,3.5802]
[1728511209194,3.52062962,139.82,139.73,0.12502]
[1728511209391,10.98,139.78,139.75,3.5801]
[1728511210500,10.98,139.77,139.74,3.5802]
[1728511211195,10.98,139.78,139.75,3.5799]
[1728511212408,14.5597,139.77,139.74,3.5803]
[1728511212592,10.98,139.76,139.73,0.12502]
[1728511212900,10.98,139.74,139.67,0.12502]
[1728511213093,10.98,139.7,139.67,0.12502]
[1728511214103,10.98,139.7,139.67,3.70702]
[1728511214305,10.98,139.7,139.67,0.12502]
[1728511214700,3.5815,139.7,139.67,0.12502]
[1728511214900,14.5615,139.7,139.67,0.12502]
[1728511215906,10.98,139.7,139.67,0.12502]
[1728511216207,14.5617,139.69,139.67,0.12502]
[1728511218609,3.5819,139.68,139.67,0.12502]
[1728511219118,14.5619,139.68,139.67,0.12502]
[1728511219318,14.5618,139.69,139.67,0.12502]
[1728511220416,5.66,139.7,139.67,0.12502]
[1728511220417,9.2415,139.7,139.67,0.12502]
[1728511220618,20.2215,139.7,139.67,0.12502]
[1728511221218,16.64,139.7,139.67,0.12502]
[1728511221421,3.5817,139.69,139.67,0.12502]
[1728511221713,10.98,139.68,139.67,0.12502]
[1728511222222,14.5616,139.69,139.67,0.12502]
[1728511222614,3.5816,139.69,139.67,0.12502]
[1728511229223,14.5616,139.69,139.67,0.12502]
[1728511230823,3.5816,139.69,139.67,0.12502]
[1728511231026,10.98,139.68,139.67,0.12502]
[1728511232226,14.5619,139.68,139.67,0.12502]
[1728511233927,3.5819,139.68,139.67,0.12502]
[1728511234119,14.5619,139.68,139.67,0.12502]
[1728511234827,3.5819,139.68,139.67,0.12502]
[1728511235024,14.5619,139.68,139.67,0.12502]
[1728511241524,3.5829,139.65,139.62,3.5833]
[1728511241719,10.98,139.64,139.6,10.98]
[1728511242024,3.5832,139.63,139.6,3.5838]
[1728511242229,14.5632,139.63,139.6,3.5838]
[1728511242429,10.98,139.63,139.59,2.7655]
[1728511242728,14.563,139.64,139.61,3.70852]
[1728511242925,5.66,139.69,139.61,3.70852]
[1728511243122,10.98,139.65,139.61,3.70852]
[1728511243326,3.5829,139.64,139.61,3.70852]
[1728511243936,14.5629,139.64,139.61,3.70852]
[1728511244930,14.5629,139.64,139.61,0.12502]
[1728511245238,3.5833,139.63,139.61,0.12502]
[1728511246135,10.98,139.64,139.61,0.12502]
[1728511246740,3.583,139.64,139.61,3.70852]
[1728511247041,2.796,139.71,139.62,10.98]
[1728511247042,10.98,139.68,139.62,10.98]
[1728511247234,3.5823,139.67,139.64,3.5829]
[1728511248231,14.5623,139.67,139.64,3.5829]
[1728511256347,10.98,139.67,139.61,11.10502]
[1728511256638,10.98,139.67,139.63,3.583]
[1728511257043,10.98,139.67,139.61,11.10502]
[1728511257248,14.5623,139.67,139.64,3.5829]
[1728511260350,3.5829,139.64,139.61,3.70862]
[1728511260650,14.5629,139.64,139.61,3.70862]
[1728511264455,10.98,139.64,139.62,3.5834]
[1728511264655,10.98,139.64,139.61,0.12502]
[1728511264962,10.98,139.66,139.61,11.10502]
[1728511265755,10.98,139.66,139.62,3.5832]
[1728511265756,14.5626,139.66,139.62,3.5832]
[1728511266054,20.2226,139.66,139.61,11.10502]
[1728511266255,14.5626,139.66,139.61,11.10502]
[1728511266659,3.5828,139.65,139.62,3.5832]
[1728511267767,14.5628,139.65,139.62,3.5832]
[1728511268457,10.98,139.66,139.61,11.10502]
[1728511268960,3.5827,139.65,139.62,3.5833]
[1728511270359,14.5627,139.65,139.62,3.5833]
[1728511275063,10.98,139.65,139.63,3.583]
[1728511275557,10.98,139.65,139.61,0.12502]
[1728511275764,14.5627,139.65,139.62,3.5833]
[1728511276152,10.98,139.65,139.62,3.5833]
[1728511276357,10.98,139.65,139.62,3.5832]
[1728511278464,10.98,139.65,139.63,3.5832]
[1728511279853,14.5626,139.66,139.63,3.5832]
[1728511280757,3.5826,139.66,139.63,3.5832]
[1728511282469,2.796,139.71,139.64,10.98]
[1728511282769,10.98,139.71,139.65,10.98]
[1728511283562,3.5816,139.69,139.66,3.5822]
[1728511284061,14.5616,139.69,139.66,3.5822]
[1728511291373,3.5826,139.66,139.63,3.5831]
[1728511291673,3.5826,139.66,139.62,10.98]
[1728511292162,3.5826,139.66,139.63,3.583]
[1728511300477,14.5626,139.66,139.63,3.583]
[1728511300775,14.5626,139.66,139.62,3.5833]
[1728511302271,14.5628,139.65,139.61,87.68013319]
[1728511303676,3.5833,139.63,139.61,76.70013319]
[1728511303869,10.98,139.64,139.61,76.70013319]
[1728511304379,14.5631,139.64,139.61,0.12502]
[1728511304567,3.5831,139.64,139.61,0.12502]
[1728511304776,14.5631,139.64,139.61,0.12502]
[1728511312995,14.5631,139.64,139.61,3.70872]
[1728511315495,10.98,139.63,139.61,3.70872]
[1728511315689,14.5634,139.62,139.61,0.12502]
[1728511320399,3.5844,139.59,139.56,3.5848]
[1728511320599,14.5644,139.59,139.56,3.5848]
[1728511331607,1.3804,139.64,139.56,3.5848]
[1728511331809,1.4002,139.66,139.6,10.98]
[1728511332013,18.0202,139.66,139.6,10.98]
[1728511332317,15.9627,139.66,139.62,3.5834]
[1728511332519,12.3802,139.66,139.6,10.98]
[1728511332816,3.5827,139.65,139.61,3.5835]
[1728511333919,14.5625,139.66,139.62,3.5834]
[1728511334220,0.12502,139.67,139.62,10.98]
[1728511334415,0.12502,139.67,139.65,3.5826]
[1728511334721,0.12502,139.67,139.66,10.98]
[1728511335222,0.12502,139.67,139.65,1.3662]
[1728511335517,3.70722,139.67,139.63,3.5831]
[1728511335722,10.98,139.66,139.6,16.6]
[1728511336319,14.5626,139.66,139.62,3.5834]
[1728511336524,10.98,139.66,139.6,16.6]
[1728511337023,14.5626,139.66,139.61,3.5835]
[1728511337924,3.5826,139.66,139.62,3.5834]
[1728511339428,10.98,139.65,139.62,3.5834]
[1728511339627,14.5627,139.65,139.61,3.5836]
[1728511340027,14.5627,139.65,139.6,16.6]
[1728511340217,14.5627,139.65,139.62,3.5834]
[1728511340422,10.98,139.65,139.62,3.5834]
[1728511341923,14.5627,139.65,139.61,3.5836]
[1728511342118,10.98,139.63,139.6,5.62]
[1728511342325,10.98,139.62,139.58,1.405]
[1728511342526,14.5637,139.61,139.57,80.17784516]
[1728511342923,14.5637,139.61,139.57,3.5845]
[1728511343323,3.584,139.6,139.57,3.5845]
[1728511343929,10.98,139.61,139.57,3.5845]
[1728511344128,14.5638,139.61,139.57,3.5845]
[1728511348034,1.3207,139.64,139.58,10.98]
[1728511348333,11.10502,139.67,139.61,10.98]
[1728511348937,3.5825,139.66,139.63,3.5831]
[1728511349733,14.68732,139.67,139.63,3.5831]
[1728511350428,11.10502,139.67,139.63,3.5831]
[1728511350629,14.5626,139.66,139.62,3.5834]
[1728511350932,0.12502,139.67,139.61,10.98]
[1728511351135,0.12502,139.67,139.66,14.5624]
[1728511354042,0.12502,139.67,139.66,3.5824]
[1728511354333,0.12502,139.67,139.66,14.5624]
[1728511355137,0.12502,139.67,139.65,16.6]
[1728511355338,0.12502,139.67,139.65,20.1826]
[1728511355841,0.12502,139.73,139.69,3.5815]
[1728511355842,3.70572,139.73,139.69,3.5815]
[1728511357737,10.98,139.7,139.65,1.3417]
[1728511357943,10.98,139.66,139.61,83.75850361]
[1728511358240,10.98,139.66,139.61,94.73850361]
[1728511358441,10.98,139.66,139.63,3.583]
[1728511359135,21.52,139.78,139.65,10.98]
[1728511359338,5.62,139.74,139.67,10.98]
[1728511359538,10.98,139.71,139.67,10.98]
[1728511359844,14.5611,139.71,139.68,3.5817]
[1728511360043,10.98,139.7,139.65,5.62]
[1728511360230,10.98,139.69,139.64,5.62]
[1728511360738,14.5617,139.69,139.65,3.5826]
[1728511362139,3.5817,139.69,139.65,3.5826]
[1728511363742,3.5817,139.69,139.66,3.5824]
[1728511364635,3.5821,139.68,139.64,20.1828]
[1728511367235,3.5821,139.68,139.65,3.5826]
[1728511368644,3.5818,139.69,139.64,16.6]
[1728511368845,3.5818,139.69,139.66,3.5823]
[1728511373242,14.5623,139.67,139.63,9.2031]
[1728511373442,10.98,139.67,139.63,3.5831]
[1728511374546,3.5826,139.66,139.63,3.5831]
[1728511378865,3.5826,139.66,139.62,14.5634]
[1728511379363,10.98,139.64,139.61,0.12502]
[1728511379569,10.98,139.63,139.61,0.12502]
[1728511379765,3.5834,139.62,139.61,0.12502]
[1728511381364,14.5634,139.62,139.61,0.12502]
[1728511384375,20.1834,139.62,139.61,0.12502]
[1728511386277,3.5834,139.62,139.61,0.12502]
[1728511390281,3.58503551,139.72,139.61,11.10502]
[1728511390483,10.98,139.72,139.67,10.98]
[1728511390681,14.561,139.72,139.68,3.5817]
[1728511391378,10.98,139.72,139.68,3.5817]
[1728511391583,3.5811,139.71,139.67,10.98]
[1728511391780,3.5811,139.71,139.67,14.562]
[1728511392385,3.5811,139.71,139.67,3.582]
[1728511392788,17.31502,139.73,139.65,5.62]
[1728511393485,3.5809,139.72,139.68,3.5817]
[1728511393685,3.5809,139.72,139.65,5.62]
[1728511393876,0.12502,139.73,139.66,17.19]
[1728511394485,3.70572,139.73,139.66,17.19]
[1728511394882,0.12502,139.73,139.66,17.19]
[1728511395087,0.12502,139.73,139.7,3.5812]
[1728511395682,0.12502,139.73,139.68,9.2018]
[1728511395884,17.31502,139.73,139.67,1.3252]
[1728511396084,17.31502,139.73,139.66,5.62]
[1728511396291,3.5813,139.71,139.67,3.582]
[1728511399792,3.5819,139.68,139.65,3.5824]
[1728511399989,3.5819,139.68,139.64,17.19]
[1728511399990,17.19,139.71,139.64,5.62]
[1728511400391,3.5817,139.69,139.64,9.2027]
[1728511401190,3.5817,139.69,139.65,3.5826]
[1728511403900,22.81,139.71,139.64,5.62]
[1728511404206,0.12502,139.73,139.64,22.81]
[1728511404904,3.5813,139.71,139.67,3.582]
[1728511409298,3.5813,139.71,139.68,3.5819]
[1728511410319,3.5813,139.71,139.64,26.38541248]
[1728511410320,17.19,139.71,139.64,5.62]
[1728511410604,3.50484984,139.72,139.64,5.62]
[1728511410605,17.19,139.69,139.64,5.62]
[1728511410804,3.5825,139.66,139.64,5.62]
[1728511415107,3.5828,139.65,139.62,1.4397]
[1728511415311,17.19,139.66,139.61,0.12502]
[1728511415611,5.62,139.65,139.61,0.12502]
[1728511415811,3.5834,139.62,139.61,0.12502]
[1728511416001,26.3934,139.62,139.61,0.12502]
[1728511416606,20.7734,139.62,139.61,0.12502]
[1728511416814,26.3934,139.62,139.61,0.12502]
[1728511427414,9.2034,139.62,139.61,0.12502]
[1728511427605,26.3934,139.62,139.61,0.12502]
[1728511429315,22.81,139.62,139.55,0.12502]
[1728511429518,3.585,139.56,139.55,0.12502]
[1728511430617,20.775,139.56,139.55,0.12502]
[1728511433215,24.42192274,139.56,139.55,0.12502]
[1728511433714,20.775,139.56,139.55,0.12502]
[1728511435117,5.62,139.59,139.55,0.12502]
[1728511435818,3.5849,139.57,139.55,0.12502]
[1728511436114,22.81,139.59,139.55,0.12502]
[1728511436614,3.585,139.56,139.55,0.12502]
[1728511436821,12.82737993,139.56,139.55,0.12502]
[1728511437726,9.205,139.56,139.55,0.12502]
[1728511438823,7.25721275,139.56,139.55,0.12502]
[1728511439810,3.585,139.56,139.55,0.12502]
[1728511440618,9.2048,139.57,139.55,0.12502]
[1728511440945,5.62,139.57,139.55,0.12502]
[1728511442523,3.585,139.56,139.55,0.12502]
[1728511444724,17.19,139.6,139.55,0.12502]
[1728511444926,3.5847,139.57,139.55,0.12502]
[1728511446428,5.62,139.59,139.55,0.12502]
[1728511446629,3.5845,139.58,139.55,3.71012]
[1728511447827,17.19,139.6,139.55,0.12502]
[1728511448026,19.9544,139.62,139.55,0.12502]
[1728511448227,9.2491006,139.63,139.55,0.12502]
[1728511448430,9.2491006,139.63,139.55,1.43132]
[1728511448624,3.5838,139.61,139.58,3.5843]
[1728511449343,17.19,139.59,139.55,0.12502]
[1728511449829,3.5845,139.58,139.55,0.12502]
[1728511450534,3.5843,139.59,139.55,0.12502]
[1728511450736,5.62,139.6,139.55,0.12502]
[1728511450934,22.81,139.6,139.55,2.84812]
[1728511451132,3.5847,139.57,139.55,2.84812]
[1728511451434,5.62,139.6,139.55,2.84812]
[1728511452537,3.5846,139.58,139.55,6.43322]
[1728511454738,3.5846,139.58,139.55,5.04192]
[1728511455133,3.5848,139.57,139.55,1.45672]
[1728511457839,3.5848,139.57,139.55,5.04192]
[1728511459839,5.6,139.6,139.55,5.04192]
[1728511460137,3.5844,139.59,139.56,3.5848]
[1728511460839,22.79,139.61,139.55,1.45672]
[1728511461343,3.585,139.56,139.55,1.45672]
[1728511461739,3.53844504,139.6,139.55,1.45672]
[1728511461935,3.5848,139.57,139.55,1.45672]
[1728511462135,22.79,139.61,139.55,1.45672]
[1728511462338,5.6,139.61,139.55,1.45672]
[1728511462641,9.13439707,139.61,139.55,1.45672]
[1728511462833,5.6,139.61,139.55,1.45672]
[1728511463036,3.5842,139.59,139.56,3.5848]
[1728511463238,5.6,139.61,139.55,1.45672]
[1728511463738,97.29576179,139.66,139.55,1.45672]
[1728511463937,5.6,139.65,139.58,17.19]
[1728511464136,22.79,139.65,139.56,24.202]
[1728511464335,17.19,139.63,139.56,7.012]
[1728511464539,20.78246729,139.63,139.56,7.012]
[1728511464743,22.79,139.65,139.56,24.202]
[1728511465436,22.79,139.65,139.56,7.012]
[1728511466136,5.6,139.64,139.58,17.19]
[1728511466643,9.1831,139.64,139.61,3.5835]
[1728511466941,94.45026179,139.66,139.59,22.79]
[1728511467141,94.45026179,139.66,139.63,3.583]
[1728511467345,94.45026179,139.66,139.6,18.5645]
[1728511467649,3.583,139.64,139.6,4.9582]
[1728511467942,3.583,139.64,139.6,1.3745]
[1728511468143,100.05026179,139.66,139.6,18.5645]
[1728511468344,94.45026179,139.66,139.61,17.19]
[1728511468645,94.45026179,139.66,139.61,18.5778]
[1728511468843,94.45026179,139.66,139.63,3.5829]
[1728511469045,94.45026179,139.66,139.61,18.5778]
[1728511469244,0.12502,139.67,139.61,18.5778]
[1728511469549,3.5824,139.66,139.63,3.5831]
[1728511469752,0.12502,139.67,139.63,3.5831]
[1728511470255,0.12502,139.67,139.61,18.5778]
[1728511470541,0.12502,139.67,139.66,3.5824]
[1728511471539,97.98836239,139.72,139.66,7.0038]
[1728511472340,94.40746239,139.72,139.66,7.0038]
[1728511472552,111.59746239,139.72,139.66,7.0038]
[1728511472856,94.40746239,139.72,139.66,7.0038]
[1728511473150,3.5813,139.71,139.67,3.582]
[1728511474149,3.5814,139.7,139.66,7.0038]
[1728511475056,3.5818,139.69,139.66,7.0038]
[1728511476047,3.582,139.68,139.66,7.0038]
[1728511477150,94.40746239,139.72,139.66,24.1938]
[1728511477350,94.40746239,139.72,139.66,7.0038]
[1728511477559,3.5821,139.68,139.66,7.0038]
[1728511477852,5.72502,139.73,139.66,7.0038]
[1728511478054,17.19,139.71,139.64,1.3071]
[1728511478251,17.19,139.68,139.61,2.86592]
[1728511478555,17.19,139.68,139.61,20.05592]
[1728511478858,22.79,139.7,139.61,20.05592]
[1728511479157,3.583,139.64,139.61,20.05592]
[1728511481354,3.5834,139.62,139.61,20.05592]
[1728511481660,3.5834,139.62,139.61,1.47812]
[1728511482249,3.5834,139.62,139.61,0.12502]
[1728511486857,3.5832,139.63,139.61,0.12502]
[1728511487667,17.19,139.7,139.61,17.31502]
[1728511487964,5.6,139.69,139.61,17.31502]
[1728511488356,3.5833,139.63,139.61,17.31502]
[1728511488762,5.6,139.69,139.61,17.31502]
[1728511489079,3.5834,139.62,139.61,17.31502]
[1728511490857,5.6,139.69,139.61,17.31502]
[1728511491151,3.5833,139.63,139.61,17.31502]
[1728511492269,3.5829,139.64,139.61,17.31502]
[1728511494057,3.5833,139.63,139.61,17.31502]
[1728511495362,3.51542097,139.68,139.61,17.31502]
[1728511495560,3.5834,139.62,139.61,17.31502]
[1728511497069,3.5834,139.62,139.61,0.12502]
[1728511497362,17.19,139.67,139.61,0.12502]
[1728511497363,3.5827,139.65,139.61,0.12502]
[1728511497664,17.19,139.7,139.62,17.19]
[1728511497870,5.6,139.7,139.62,20.7734]
[1728511498063,3.5824,139.67,139.63,5.6]
[1728511498369,5.6,139.7,139.63,5.6]
[1728511499272,3.5829,139.64,139.63,5.6]
[1728511499564,20.78962338,139.68,139.61,0.12502]
[1728511499770,3.5833,139.63,139.61,0.12502]
[1728511500261,17.19,139.68,139.61,0.12502]
[1728511500568,3.5834,139.62,139.61,0.12502]
[1728511501170,3.5826,139.66,139.61,0.12502]
[1728511501372,5.6,139.67,139.61,0.12502]
[1728511501669,3.5834,139.62,139.61,0.12502]
[1728511505569,3.5849,139.57,139.55,0.12502]
[1728511505770,17.19,139.61,139.55,0.12502]
[1728511506062,22.79,139.61,139.55,0.12502]
[1728511506270,3.585,139.56,139.55,0.12502]
[1728511509980,9.25402543,139.58,139.49,17.31502]
[1728511510169,17.19,139.57,139.49,22.91502]
[1728511510481,17.19,139.57,139.49,17.31502]
[1728511510672,9.25402543,139.58,139.49,17.31502]
[1728511510673,17.19,139.55,139.49,0.12502]
[1728511510983,5.6,139.57,139.49,17.31502]
[1728511511279,3.5858,139.53,139.49,17.31502]
[1728511511868,3.5858,139.53,139.49,20.90172]
[1728511513380,5.6,139.57,139.51,20.776]
[1728511513879,3.5853,139.55,139.51,20.776]
[1728511515072,3.5851,139.56,139.53,17.19]
[1728511515279,2.7287,139.6,139.51,17.19]
[1728511515280,5.6,139.59,139.51,17.19]
[1728511516684,22.79,139.59,139.51,17.19]
[1728511517483,3.5857,139.53,139.51,17.19]
[1728511521480,17.19,139.57,139.49,17.31502]
[1728511521683,1.4329,139.58,139.49,17.31502]
[1728511521684,17.19,139.55,139.49,0.12502]
[1728511522183,18.6015,139.55,139.49,0.12502]
[1728511522389,3.5865,139.5,139.49,0.12502]
[1728511523484,3.5864,139.51,139.49,0.12502]
[1728511523683,17.19,139.53,139.49,0.12502]
[1728511524293,3.5865,139.5,139.49,0.12502]
[1728511525490,22.79,139.5,139.43,0.12502]
[1728511526393,17.19,139.48,139.43,0.12502]
[1728511526594,5.6,139.47,139.43,0.12502]
[1728511527597,1.4446,139.46,139.43,0.12502]
[1728511528092,7.0058,139.49,139.43,0.12502]
[1728511528799,3.5877,139.46,139.43,0.12502]
[1728511529792,3.5874,139.47,139.43,3.71312]
[1728511530098,5.6,139.49,139.43,0.12502]
[1728511530297,3.5876,139.46,139.43,0.12502]
[1728511530493,5.6,139.49,139.43,0.12502]
[1728511530997,3.5873,139.47,139.43,0.12502]
[1728511531298,5.6,139.49,139.43,0.12502]
[1728511532101,3.5878,139.46,139.43,0.12502]
[1728511532301,5.6,139.49,139.43,0.12502]
[1728511533490,2.7751,139.5,139.43,0.12502]
[1728511533691,10.58339543,139.53,139.44,17.19]
[1728511534198,3.5866,139.5,139.47,3.5871]
[1728511534609,3.5866,139.5,139.44,22.79]
[1728511534802,3.5866,139.5,139.46,3.5874]
[1728511535204,10.64897253,139.53,139.46,3.5874]
[1728511535407,3.5868,139.49,139.46,3.5874]
[1728511536005,3.5866,139.5,139.47,3.5872]
[1728511536204,3.5866,139.5,139.44,22.79]
[1728511536604,3.5866,139.5,139.46,3.5874]
[1728511536806,2.7501,139.54,139.46,17.19]
[1728511536998,5.6,139.52,139.46,17.19]
[1728511537605,3.5866,139.5,139.46,20.7773]
[1728511537909,5.6,139.52,139.46,17.19]
[1728511538510,3.5863,139.51,139.44,5.6]
[1728511538712,3.5863,139.51,139.46,17.19]
[1728511539213,3.5861,139.52,139.49,3.5867]
[1728511539512,3.5861,139.52,139.47,5.6]
[1728511539811,8.3501,139.54,139.47,5.6]
[1728511540012,3.586,139.52,139.48,3.5869]
[1728511542211,8.3501,139.54,139.48,3.5869]
[1728511542407,3.5863,139.51,139.48,3.5869]
[1728511543909,3.5865,139.5,139.47,9.1872]
[1728511544114,3.5865,139.5,139.47,3.5872]
[1728511547315,20.76966783,139.53,139.44,17.19]
[1728511547521,20.76966783,139.53,139.45,3.5878]
[1728511548525,20.76966783,139.53,139.44,26.3779]
[1728511549115,17.19,139.51,139.43,0.12502]
[1728511549321,5.6,139.5,139.43,5.72502]
[1728511549722,3.5874,139.47,139.43,5.72502]
[1728511550524,3.5874,139.47,139.44,3.5881]
[1728511551324,5.6,139.5,139.44,3.5881]
[1728511551325,3.5871,139.48,139.44,3.5881]
[1728511553129,9.1866,139.5,139.46,3.5874]